fUSD/lending_fUSD_20250225
["ID","MTS","AMOUNT","RATE_DAILY","PERIOD"]
[354382607,1740468685691,-1352.07,0.00054794,120]
[354382608,1740468685702,-500.0,0.00054794,120]
[354382609,1740468685713,-500.0,0.00054794,120]
[354382610,1740468685723,-2909.1,0.00054794,120]
[354382611,1740468685733,-1667.75,0.00054794,120]
[354382612,1740468685743,-511.00621781,0.00054794,120]
[354382613,1740468685754,-4349.64,0.00054794,120]
[354382614,1740468685764,-500.0,0.00054794,120]
[354382615,1740468685774,-1519.71,0.00054794,120]
[354382616,1740468685788,-752.34,0.00054794,120]
[354382617,1740468685799,-864.91,0.00054794,120]
[354382618,1740468685809,-192.41381878,0.00054794,120]
[354382619,1740468685820,-1290.66,0.00054794,120]
[354382620,1740468685831,-583.86206337,0.00054794,120]
[354382621,1740468685841,-500.0,0.00054794,120]
[354382622,1740468685851,-500.0,0.00054794,120]
[354382623,1740468685861,-910.81,0.00054794,5]
[354382624,1740468685871,-2901.27,0.00054794,120]
[354382625,1740468685881,-500.0,0.00054794,120]
[354382626,1740468685891,-1857.67,0.00054794,120]
[354382627,1740468685900,-516.5804844,0.00054794,120]
[354382628,1740468685910,-500.0,0.00054794,120]
[354382629,1740468685921,-2986.93,0.00054794,120]
[354382630,1740468685931,-500.0,0.00054794,120]
[354382631,1740468685940,-2864.49,0.00054794,120]
[354382632,1740468685951,-632.34966276,0.00054794,120]
[354382633,1740468685960,-500.0,0.00054794,120]
[354382634,1740468685970,-500.0,0.00054794,120]
[354382635,1740468685992,-2305.88,0.00054794,120]
[354382636,1740468686015,-502.44791304,0.00054794,120]
[354382637,1740468686034,-469.36021706,0.00054794,120]
[354382638,1740468686051,-2121.17,0.00054794,120]
[354382639,1740468686070,-500.0,0.00054794,120]
[354382640,1740468686094,-2477.45,0.00054794,120]
[354382641,1740468686112,-504.67765315,0.00054794,30]
[354382642,1740468686128,-500.0,0.00054794,120]
[354382643,1740468686142,-500.0,0.00054794,120]
[354382644,1740468686160,-513.17458315,0.00054794,120]
[354382645,1740468686178,-1752.42,0.00054794,120]
[354382646,1740468686195,-538.64,0.00054794,120]
[354382647,1740468686417,-1452.1,0.00054794,120]
[354382648,1740468686435,-500.0,0.00054794,120]
[354382649,1740468686452,-1822.96,0.00054794,120]
[354382650,1740468686468,-1851.24,0.00054794,120]
[354382651,1740468686483,-500.0,0.00054794,120]
[354382652,1740468686498,-503.84472666,0.00054794,120]
[354382653,1740468686516,-607.87,0.00054794,120]
[354382654,1740468686533,-507.40318057,0.00054794,120]
[354382655,1740468686547,-500.0,0.00054794,120]
[354382656,1740468686560,-474.90253443,0.00054794,30]
[354382657,1740468686577,-505.47077882,0.00054794,120]
[354382658,1740468686592,-503.21858844,0.00054794,120]
[354382659,1740468686605,-2265.65,0.00054794,120]
[354382660,1740468686619,-500.0,0.00054794,120]
[354382661,1740468686636,-3192.11,0.00054794,120]
[354382662,1740468686653,-3707.86,0.00054794,120]
[354382663,1740468686668,-1530.35,0.00054794,120]
[354382664,1740468686683,-508.70366785,0.00054794,120]
[354382665,1740468686699,-1470.7,0.00054794,120]
[354382666,1740468686715,-1400.72,0.00054794,120]
[354382667,1740468686731,-504.15235606,0.00054794,120]
[354382668,1740468686746,-502.67781305,0.00054794,120]
[354382669,1740468686763,-500.0,0.00054794,120]
[354382670,1740468686777,-813.46,0.00054794,120]
[354382671,1740468686792,-1028.29,0.00054794,120]
[354382672,1740468686806,-503.88456475,0.00054794,120]
[354382673,1740468686819,-500.0,0.00054794,120]
[354382674,1740468686834,-500.96980222,0.00054794,120]
[354382675,1740468686849,-2337.12,0.00054794,120]
[354382676,1740468686864,-502.10480622,0.00054794,120]
[354382677,1740468686876,-640.5,0.00054794,120]
[354382678,1740468686890,-500.0,0.00054794,120]
[354382679,1740468686903,-500.0,0.00054794,120]
[354382680,1740468686916,-500.0,0.00054794,120]
[354382681,1740468686930,-3333.6,0.00054794,120]
[354382682,1740468686944,-3975.46,0.00054794,120]
[354382683,1740468686958,-501.86438054,0.00054794,120]
[354382684,1740468686972,-500.0,0.00054794,120]
[354382685,1740468686986,-5873.49,0.00054794,120]
[354382686,1740468686999,-514.60530764,0.00054794,120]
[354382687,1740468687013,-503.72216674,0.00054794,120]
[354382688,1740468687027,-1036.75,0.00054794,120]
[354382689,1740468687044,-503.53236338,0.00054794,120]
[354382690,1740468687058,-500.0,0.00054794,120]
[354382691,1740468687076,-500.0,0.00054794,120]
[354382692,1740468687090,-500.90775029,0.00054794,120]
[354382693,1740468687103,-500.0,0.00054794,120]
[354382694,1740468687117,-613.18,0.00054794,120]
[354382695,1740468687131,-2745.61,0.00054794,120]
[354382696,1740468687145,-562.09,0.00054794,120]
[354382697,1740468687158,-707.46,0.00054794,120]
[354382698,1740468687170,-500.0,0.00054794,120]
[354382699,1740468687183,-4540.04,0.00054794,120]
[354382700,1740468687196,-500.0,0.00054794,120]
[354382701,1740468687210,-1113.18,0.00054794,120]
[354382702,1740468687223,-2703.16,0.00054794,120]
[354382703,1740468687236,-503.12933727,0.00054794,120]
[354382704,1740468687249,-3052.04,0.00054794,120]
[354382705,1740468687261,-522.41,0.00054794,120]
[354382706,1740468687273,-500.0,0.00054794,120]
[354382707,1740468687288,-501.66131974,0.00054794,120]
[354382708,1740468687301,-500.0,0.00054794,120]
[354382709,1740468687315,-551.64,0.00054794,120]
[354382710,1740468687328,-504.78513581,0.00054794,120]
[354382711,1740468687342,-500.0,0.00054794,120]
[354382712,1740468687355,-1552.51,0.00054794,120]
[354382713,1740468687368,-1833.0,0.00054794,120]
[354382714,1740468687380,-1000.0,0.00054794,60]
[354382715,1740468687393,-2971.45,0.00054794,90]
[354382716,1740468687406,-500.0,0.00054794,120]
[354382717,1740468687418,-1701.44,0.00054794,120]
[354382718,1740468687431,-553.8,0.00054794,120]
[354382719,1740468687444,-503.27290653,0.00054794,120]
[354382720,1740468687456,-2581.17,0.00054794,120]
[354382721,1740468687468,-500.0,0.00054794,120]
[354382722,1740468687479,-500.0,0.00054794,120]
[354382723,1740468687491,-503.75506497,0.00054794,120]
[354382724,1740468687502,-506.99197915,0.00054794,120]
[354382725,1740468687514,-500.0,0.00054794,120]
[354382726,1740468687526,-500.0,0.00054794,120]
[354382727,1740468687541,-500.0,0.00054794,120]
[354382728,1740468687553,-522.17,0.00054794,120]
[354382729,1740468687566,-3435.08,0.00054794,120]
[354382730,1740468687579,-500.0,0.00054794,120]
[354382731,1740468687591,-500.0,0.00054794,120]
[354382732,1740468687604,-500.0,0.00054794,120]
[354382733,1740468687616,-500.0,0.00054794,120]
[354382734,1740468687628,-500.0,0.00054794,120]
[354382735,1740468687640,-500.0,0.00054794,120]
[354382736,1740468687652,-857.98,0.00054794,120]
[354382737,1740468687663,-3140.0,0.00054794,120]
[354382738,1740468687675,-500.0,0.00054794,120]
[354382739,1740468687687,-500.0,0.00054794,120]
[354382740,1740468687703,-500.0,0.00054794,120]
[354382741,1740468687714,-3227.53,0.00054794,120]
[354382742,1740468687725,-500.0,0.00054794,120]
[354382743,1740468687737,-500.0,0.00054794,120]
[354382744,1740468687749,-502.34032618,0.00054794,120]
[354382745,1740468687760,-500.0,0.00054794,120]
[354382746,1740468687773,-775.19,0.00054794,120]
[354382747,1740468687786,-501.96538352,0.00054794,7]
[354382748,1740468687798,-872.89,0.00054794,120]
[354382749,1740468687810,-500.0,0.00054794,120]
[354382750,1740468687823,-2538.08,0.00054794,120]
[354382751,1740468687835,-500.0,0.00054794,120]
[354382752,1740468687847,-500.0,0.00054794,120]
[354382753,1740468687858,-508.41946404,0.00054794,120]
[354382754,1740468687870,-500.0,0.00054794,120]
[354382755,1740468687882,-500.0,0.00054794,120]
[354382756,1740468687894,-500.0,0.00054794,120]
[354382757,1740468687906,-500.0,0.00054794,120]
[354382758,1740468687919,-500.0,0.00054794,120]
[354382759,1740468687931,-500.0,0.00054794,120]
[354382760,1740468687943,-500.0,0.00054794,120]
[354382761,1740468687955,-500.0,0.00054794,120]
[354382762,1740468687968,-500.0,0.00054794,120]
[354382763,1740468687981,-2940.18,0.00054794,120]
[354382764,1740468687993,-500.0,0.00054794,120]
[354382765,1740468688006,-3583.88,0.00054794,120]
[354382766,1740468688019,-479.69079167,0.00054794,120]
[354382767,1740468688033,-500.0,0.00054794,30]
[354382768,1740468688046,-531.75701101,0.00054794,15]
[354382769,1740468688059,-500.0,0.00054794,120]
[354382770,1740468688072,-503.21458572,0.00054794,120]
[354382771,1740468688086,-2559.65,0.00054794,120]
[354382772,1740468688100,-509.55216414,0.00054794,120]
[354382773,1740468688113,-688.16,0.00054794,120]
[354382774,1740468688125,-500.0,0.00054794,120]
[354382775,1740468688139,-1118.81,0.00054794,120]
[354382776,1740468688152,-500.0,0.00054794,120]
[354382777,1740468688164,-3329.23,0.00054794,120]
[354382778,1740468688178,-568.38,0.00054794,120]
[354382779,1740468688190,-1907.44,0.00054794,120]
[354382780,1740468688203,-3487.12,0.00054794,120]
[354382781,1740468688216,-500.0,0.00054794,120]
[354382782,1740468688229,-501.27370672,0.00054794,120]
[354382783,1740468688242,-506.6115777,0.00054794,120]
[354382784,1740468688255,-2138.38,0.00054794,120]
[354382785,1740468688268,-998.34,0.00054794,120]
[354382786,1740468688282,-1469.89,0.00054794,120]
[354382787,1740468688295,-502.43032169,0.00054794,120]
[354382788,1740468688308,-880.12,0.00054794,120]
[354382789,1740468688321,-503.68255046,0.00054794,120]
[354382790,1740468688341,-500.0,0.00054794,120]
[354382791,1740468688356,-1941.03,0.00054794,120]
[354382792,1740468688371,-502.76581231,0.00054794,120]
[354382793,1740468688385,-1969.46,0.00054794,120]
[354382794,1740468688399,-3496.1,0.00054794,120]
[354382795,1740468688414,-2020.04,0.00054794,120]
[354382796,1740468688427,-500.0,0.00054794,120]
[354382797,1740468688441,-507.48689368,0.00054794,120]
[354382798,1740468688455,-1704.77,0.00054794,120]
[354382799,1740468688468,-502.08417103,0.00054794,120]
[354382800,1740468688482,-500.0,0.00054794,120]
[354382801,1740468688498,-500.0,0.00054794,120]
[354382802,1740468688512,-500.0,0.00054794,120]
[354382803,1740468688866,-500.0,0.00054794,120]
[354382804,1740468688878,-3000.0,0.00054794,120]
[354382805,1740468688888,-503.06679454,0.00054794,120]
[354382806,1740468688898,-413.2819233,0.00054794,120]
[354382807,1740468688907,-1814.1,0.00054794,120]
[354382808,1740468688917,-502.41760453,0.00054794,120]
[354382809,1740468688927,-500.0,0.00054794,120]
[354382810,1740468688937,-500.0,0.00054794,120]
[354382811,1740468688948,-1000.0,0.00054794,2]
[354382812,1740468688958,-500.98903372,0.00054794,120]
[354382813,1740468688969,-3162.2,0.00054794,120]
[354382814,1740468688979,-500.0,0.00054794,120]
[354382815,1740468688988,-571.71771745,0.00054794,2]
[354382816,1740468688998,-507.12454378,0.00054794,120]
[354382817,1740468689008,-561.29,0.00054794,120]
[354382818,1740468689018,-525.30721693,0.00054794,120]
[354382819,1740468689028,-558.43,0.00054794,120]
[354382820,1740468689041,-500.0,0.00054794,2]
[354382821,1740468689051,-500.0,0.00054794,120]
[354382822,1740468689061,-4214.34,0.00054794,120]
[354382823,1740468689077,-379.71673622,0.00054794,120]
[354382824,1740468689087,-1793.36,0.00054794,120]
[354382825,1740468689097,-1107.87,0.00054794,120]
[354382826,1740468689107,-501.0906515,0.00054794,120]
[354382827,1740468689118,-1453.67,0.00054794,30]
[354382828,1740468689128,-500.0,0.00054794,120]
[354382829,1740468689137,-500.0,0.00054794,120]
[354382830,1740468689147,-2203.33,0.00054794,120]
[354382831,1740468689157,-1291.79,0.00054794,120]
[354382832,1740468689167,-500.0,0.00054794,120]
[354382833,1740468689177,-500.0,0.00054794,120]
[354382834,1740468689187,-500.0,0.00054794,120]
[354382835,1740468689198,-500.0,0.00054794,120]
[354382836,1740468689208,-400.05727336,0.00054794,2]
[354382837,1740468689218,-2186.37,0.00054794,120]
[354382838,1740468689228,-500.0,0.00054794,120]
[354382839,1740468689238,-2099.71,0.00054794,120]
[354382840,1740468689248,-1541.65,0.00054794,120]
[354382841,1740468689258,-500.0,0.00054794,2]
[354382842,1740468689268,-502.26496603,0.00054794,120]
[354382843,1740468689278,-500.0,0.00054794,120]
[354382844,1740468689292,-500.0,0.00054794,120]
[354382845,1740468689302,-500.0,0.00054794,120]
[354382846,1740468689312,-500.0,0.00054794,120]
[354382847,1740468689321,-501.49376283,0.00054794,120]
[354382848,1740468689330,-500.0,0.00054794,120]
[354382849,1740468689341,-500.0,0.00054794,120]
[354382850,1740468689350,-2864.64,0.00054794,120]
[354382851,1740468689359,-500.0,0.00054794,120]
[354382852,1740468689368,-500.0,0.00054794,120]
[354382853,1740468689378,-1803.36,0.00054794,120]
[354382854,1740468689388,-500.0,0.00054794,120]
[354382855,1740468689397,-500.0,0.00054794,2]
[354382856,1740468689406,-1506.59,0.00054794,120]
[354382857,1740468689416,-1568.57,0.00054794,120]
[354382858,1740468689426,-980.59,0.00054794,120]
[354382859,1740468689435,-1792.49,0.00054794,120]
[354382860,1740468689444,-668.51,0.00054794,120]
[354382861,1740468689454,-500.0,0.00054794,120]
[354382862,1740468689463,-1620.72,0.00054794,120]
[354382863,1740468689473,-500.0,0.00054794,120]
[354382864,1740468689482,-500.0,0.00054794,120]
[354382865,1740468689492,-500.0,0.00054794,120]
[354382866,1740468689502,-659.49,0.00054794,120]
[354382867,1740468689511,-500.0,0.00054794,120]
[354382868,1740468689522,-849.91,0.00054794,120]
[354382869,1740468689534,-500.0,0.00054794,120]
[354382870,1740468689544,-464.4682694,0.00054794,120]
[354382871,1740468689554,-3340.49,0.00054794,120]
[354382872,1740468689564,-500.0,0.00054794,120]
[354382873,1740468689575,-150.979023,0.00054794,120]
[354382874,1740468689585,-680.52,0.00054794,120]
[354382875,1740468689595,-502.11935828,0.00054794,120]
[354382876,1740468689605,-500.0,0.00054794,120]
[354382877,1740468689614,-502.66362595,0.00054794,120]
[354382878,1740468689624,-500.0,0.00054794,120]
[354382879,1740468689635,-1680.11,0.00054794,120]
[354382880,1740468689645,-500.0,0.00054794,120]
[354382881,1740468689655,-500.0,0.00054794,120]
[354382882,1740468689664,-2006.24,0.00054794,120]
[354382883,1740468689674,-2470.99,0.00054794,120]
[354382884,1740468689684,-1713.5,0.00054794,120]
[354382885,1740468689694,-500.0,0.00054794,120]
[354382886,1740468689704,-12967.5,0.00054795,30]
[354382887,1740468689714,-176.28,0.00054795,30]
[354382888,1740468689724,-50000.0,0.0005487,120]
[354382889,1740468689734,-6123.24901378,0.000549,120]
[354382890,1740468689744,-151.0,0.00054932,120]
[354382891,1740468689754,-423.0,0.00054986,90]
[354382892,1740468689765,-1025.25,0.00055,120]
[354382893,1740468689775,-209.86720994,0.00055,120]
[354382894,1740468689786,-725.96856552,0.00055,30]
[354382895,1740468689796,-1000.0,0.00055,2]
[354382896,1740468689806,-150.0,0.00055,120]
[354382897,1740468689815,-2161.80441296,0.00055,120]
[354382898,1740468689824,-350.0,0.00055,120]
[354382899,1740468689834,-10000.0,0.00055,30]
[354382900,1740468689843,-12557.77356793,0.00055,5]
[354382901,1740468689853,-150.0,0.00055,30]
[354382902,1740468689863,-1020.53469853,0.00055,5]
[354382903,1740468689872,-257.763184,0.00055,100]
[354382904,1740468689882,-527.51872668,0.00055068,120]
[354382905,1740468689892,-563.24,0.00055068,120]
[354382906,1740468689901,-580.45,0.00055068,120]
[354382907,1740468689910,-167.182594,0.00055068,120]
[354382908,1740468689920,-406.014874,0.00055068,120]
[354382909,1740468689929,-554.357489,0.00055068,120]
[354382910,1740468689938,-505.18393316,0.00055068,120]
[354382911,1740468689948,-507.69252266,0.00055068,120]
[354382912,1740468689958,-500.0,0.00055068,120]
[354382913,1740468689967,-504.53382117,0.00055068,120]
[354382914,1740468689976,-500.0,0.00055068,120]
[354382915,1740468689986,-500.0,0.00055068,120]
[354382916,1740468689995,-500.0,0.00055068,120]
[354382917,1740468690005,-500.0,0.00055068,120]
[354382918,1740468690014,-502.68823793,0.00055068,120]
[354382919,1740468690024,-500.0,0.00055068,120]
[354382920,1740468690035,-367.56951752,0.00055068,120]
[354382921,1740468690044,-500.0,0.00055068,120]
[354382922,1740468690054,-500.0,0.00055068,120]
[354382923,1740468690064,-504.74095131,0.00055068,120]
[354382924,1740468690074,-508.12105697,0.00055068,120]
[354382925,1740468690083,-500.0,0.00055068,120]
[354382926,1740468690097,-504.60712493,0.00055068,120]
[354382927,1740468690106,-375.3453299,0.00055068,120]
[354382928,1740468690116,-500.0,0.00055068,16]
[354382929,1740468690126,-508.75364971,0.00055068,120]
[354382930,1740468690135,-500.0,0.00055068,120]
[354382931,1740468690145,-504.9237657,0.00055068,120]
[354382932,1740468690155,-501.47951206,0.00055068,5]
[354382933,1740468690166,-500.0,0.00055068,120]
[354382934,1740468690176,-503.66426435,0.00055068,120]
[354382935,1740468690185,-500.0,0.00055068,120]
[354382936,1740468690195,-508.08353324,0.00055068,2]
[354382937,1740468690204,-504.97762926,0.00055068,120]
[354382938,1740468690213,-500.0,0.00055068,120]
[354382939,1740468690222,-500.0,0.00055068,120]
[354382940,1740468690232,-507.14008757,0.00055068,120]
[354382941,1740468690242,-593.14511617,0.00055068,120]
[354382942,1740468690252,-500.0,0.00055068,120]
[354382943,1740468690262,-500.0,0.00055068,120]
[354382944,1740468690271,-500.0,0.00055068,14]
[354382945,1740468690281,-500.0,0.00055068,120]
[354382946,1740468690295,-500.0,0.00055068,120]
[354382947,1740468690305,-500.0,0.00055068,2]
[354382948,1740468690315,-347.80526171,0.00055068,120]
[354382949,1740468690324,-500.0,0.00055068,120]
[354382950,1740468690334,-500.0,0.00055068,120]
[354382951,1740468690344,-500.0,0.00055068,120]
[354382952,1740468690354,-498.21513353,0.00055068,120]
[354382953,1740468690363,-500.0,0.00055068,120]
[354382954,1740468690373,-500.0,0.00055068,120]
[354382955,1740468690384,-500.0,0.00055068,120]
[354382956,1740468690393,-500.0,0.00055068,120]
[354382957,1740468690403,-500.0,0.00055068,120]
[354382958,1740468690413,-500.0,0.00055068,120]
[354382959,1740468690423,-500.0,0.00055068,120]
[354382960,1740468690432,-500.0,0.00055068,120]
[354382961,1740468690443,-500.0,0.00055068,120]
[354382962,1740468690453,-501.09405174,0.00055068,120]
[354382963,1740468690463,-502.47388006,0.00055068,120]
[354382964,1740468690472,-500.0,0.00055068,120]
[354382965,1740468690482,-500.0,0.00055068,120]
[354382966,1740468690491,-501.83793847,0.00055068,120]
[354382967,1740468690502,-500.0,0.00055068,120]
[354382968,1740468690511,-500.0,0.00055068,120]
[354382969,1740468690521,-501.15728016,0.00055068,120]
[354382970,1740468690531,-500.0,0.00055068,120]
[354382971,1740468690543,-1001.60761312,0.00055068,120]
[354382972,1740468690553,-500.0,0.00055068,120]
[354382973,1740468690563,-521.68,0.00055068,120]
[354382974,1740468690573,-500.0,0.00055068,120]
[354382975,1740468690583,-500.0,0.00055068,120]
[354382976,1740468690593,-500.0,0.00055068,120]
[354382977,1740468690603,-500.0,0.00055068,120]
[354382978,1740468690612,-500.0,0.00055068,120]
[354382979,1740468690622,-500.0,0.00055068,120]
[354382980,1740468690632,-699.56,0.00055068,120]
[354382981,1740468690641,-501.25166545,0.00055068,120]
[354382982,1740468690651,-500.0,0.00055068,120]
[354382983,1740468690661,-500.0,0.00055068,120]
[354382984,1740468690671,-500.0,0.00055068,2]
[354382985,1740468690680,-507.16490529,0.00055068,120]
[354382986,1740468690690,-500.0,0.00055068,120]
[354382987,1740468690700,-500.66493058,0.00055068,120]
[354382988,1740468690709,-500.0,0.00055068,120]
[354382989,1740468690719,-500.0,0.00055068,120]
[354382990,1740468690729,-500.0,0.00055068,120]
[354382991,1740468690738,-500.0,0.00055068,120]
[354382992,1740468690748,-505.01484675,0.00055068,120]
[354382993,1740468690757,-500.0,0.00055068,120]
[354382994,1740468690767,-500.0,0.00055068,120]
[354382995,1740468690776,-500.0,0.00055068,120]
[354382996,1740468690789,-500.0,0.00055068,120]
[354382997,1740468690799,-212.34653287,0.00055068,120]
[354382998,1740468690808,-500.0,0.00055068,120]
[354382999,1740468690818,-500.0,0.00055068,120]
[354383000,1740468690828,-500.0,0.00055068,120]
[354383001,1740468690838,-687.3,0.00055068,120]
[354383002,1740468690847,-500.0,0.00055068,120]
[354383003,1740468690857,-500.0,0.00055068,120]
[354383004,1740468690866,-500.0,0.00055068,120]
[354383005,1740468690876,-506.75831259,0.00055068,120]
[354383006,1740468690885,-500.0,0.00055068,120]
[354383007,1740468690895,-500.0,0.00055068,120]
[354383008,1740468690905,-500.4878258,0.00055068,120]
[354383009,1740468690915,-1291.42,0.00055068,120]
[354383010,1740468690925,-500.0,0.00055068,120]
[354383011,1740468690934,-500.0,0.00055068,120]
[354383012,1740468690943,-510.58995785,0.00055068,120]
[354383013,1740468690953,-512.33933851,0.00055068,120]
[354383014,1740468690963,-504.59014229,0.00055068,120]
[354383015,1740468690973,-500.0,0.00055068,120]
[354383016,1740468690983,-500.0,0.00055068,120]
[354383017,1740468690992,-500.0,0.00055068,120]
[354383018,1740468691002,-500.0,0.00055068,120]
[354383019,1740468691012,-500.0,0.00055068,120]
[354383020,1740468691022,-530.99310042,0.00055068,120]
[354383021,1740468691032,-500.0,0.00055068,120]
[354383022,1740468691042,-500.0,0.00055068,120]
[354383023,1740468691052,-500.0,0.00055068,120]
[354383024,1740468691062,-850.45,0.00055068,120]
[354383025,1740468691077,-500.0,0.00055068,120]
[354383026,1740468691087,-500.0,0.00055068,120]
[354383027,1740468691097,-500.0,0.00055068,120]
[354383028,1740468691111,-500.0,0.00055068,120]
[354383029,1740468691121,-500.86029577,0.00055068,120]
[354383030,1740468691131,-500.0,0.00055068,120]
[354383031,1740468691140,-500.0,0.00055068,120]
[354383032,1740468691151,-500.0,0.00055068,120]
[354383033,1740468691162,-500.0,0.00055068,120]
[354383034,1740468691171,-836.92,0.00055068,120]
[354383035,1740468691181,-500.0,0.00055068,120]
[354383036,1740468691191,-500.0,0.00055068,120]
[354383037,1740468691200,-925.53,0.00055068,120]
[354383038,1740468691210,-500.0,0.00055068,120]
[354383039,1740468691220,-529.63267398,0.00055068,120]
[354383040,1740468691230,-500.0,0.00055068,120]
[354383041,1740468691240,-525.48,0.00055068,120]
[354383042,1740468691250,-500.0,0.00055068,120]
[354383043,1740468691261,-500.0,0.00055068,120]
[354383044,1740468691272,-503.01947142,0.00055068,120]
[354383045,1740468691282,-500.0,0.00055068,120]
[354383046,1740468691296,-1017.7,0.00055068,120]
[354383047,1740468691306,-500.0,0.00055068,120]
[354383048,1740468691317,-500.835146,0.00055068,120]
[354383049,1740468691328,-620.4,0.00055068,120]
[354383050,1740468691339,-500.0,0.00055068,120]
[354383051,1740468691350,-500.0,0.00055068,120]
[354383052,1740468691361,-500.0,0.00055068,120]
[354383053,1740468691373,-500.0,0.00055068,30]
[354383054,1740468691384,-500.0,0.00055068,120]
[354383055,1740468691395,-637.38,0.00055068,120]
[354383056,1740468691406,-500.0,0.00055068,120]
[354383057,1740468691417,-500.91541476,0.00055068,120]
[354383058,1740468691428,-500.0,0.00055068,120]
[354383059,1740468691439,-500.0,0.00055068,120]
[354383060,1740468691449,-555.91192715,0.00055068,120]
[354383061,1740468691460,-822.2,0.00055068,120]
[354383062,1740468691470,-500.0,0.00055068,120]
[354383063,1740468691480,-502.56177779,0.00055068,120]
[354383064,1740468691490,-500.0,0.00055068,120]
[354383065,1740468691500,-500.0,0.00055068,120]
[354383066,1740468691510,-500.0,0.00055068,120]
[354383067,1740468691521,-500.0,0.00055068,120]
[354383068,1740468691530,-500.0,0.00055068,120]
[354383069,1740468691542,-500.0,0.00055068,120]
[354383070,1740468691552,-543.16,0.00055068,120]
[354383071,1740468691562,-522.76814207,0.00055068,120]
[354383072,1740468691573,-500.0,0.00055068,120]
[354383073,1740468691583,-1571.07,0.00055068,120]
[354383074,1740468691593,-500.0,0.00055068,120]
[354383075,1740468691603,-215.85795535,0.00055068,120]
[354383076,1740468691613,-500.0,0.00055068,120]
[354383077,1740468691623,-848.24,0.00055068,120]
[354383078,1740468691632,-500.0,0.00055068,120]
[354383079,1740468691642,-503.70677475,0.00055068,120]
[354383080,1740468691652,-943.15,0.00055068,120]
[354383081,1740468691662,-500.7181742,0.00055068,120]
[354383082,1740468691672,-500.0,0.00055068,120]
[354383083,1740468691682,-507.03957459,0.00055068,120]
[354383084,1740468691691,-500.0,0.00055068,120]
[354383085,1740468691701,-454.87604492,0.00055068,120]
[354383086,1740468691711,-500.0,0.00055068,120]
[354383087,1740468691721,-1168.63,0.00055068,120]
[354383088,1740468691731,-500.0,0.00055068,120]
[354383089,1740468691741,-500.0,0.00055068,120]
[354383090,1740468691751,-500.0,0.00055068,120]
[354383091,1740468691760,-500.0,0.00055068,120]
[354383092,1740468691770,-511.58875869,0.00055068,120]
[354383093,1740468691781,-500.0,0.00055068,120]
[354383094,1740468691795,-500.0,0.00055068,120]
[354383095,1740468691805,-500.0,0.00055068,120]
[354383096,1740468691815,-500.0,0.00055068,120]
[354383097,1740468691825,-500.0,0.00055068,120]
[354383098,1740468691835,-500.0,0.00055068,120]
[354383099,1740468691845,-504.57518979,0.00055068,120]
[354383100,1740468691855,-500.0,0.00055068,120]
[354383101,1740468691865,-517.51,0.00055068,120]
[354383102,1740468691876,-500.0,0.00055068,120]
[354383103,1740468691886,-517.07745748,0.00055068,120]
[354383104,1740468691896,-502.25077348,0.00055068,120]
[354383105,1740468691905,-500.0,0.00055068,120]
[354383106,1740468691915,-951.32,0.00055068,120]